fUSD/lending_fUSD_20240831
["ID","MTS","AMOUNT","RATE_DAILY","PERIOD"]
[336751213,1725097493539,-508.73697189,0.00044383,120]
[336751214,1725097493597,-500.0,0.00044383,120]
[336751215,1725097493658,-500.0,0.00044383,120]
[336751216,1725097493714,-500.0,0.00044383,120]
[336751217,1725097493770,-544.21185984,0.00044383,120]
[336751218,1725097493825,-500.0,0.00044383,120]
[336751219,1725097493883,-500.0,0.00044383,120]
[336751220,1725097493941,-500.0,0.00044383,120]
[336751221,1725097494000,-500.0,0.00044383,120]
[336751222,1725097494058,-615.07,0.00044383,120]
[336751223,1725097494120,-500.0,0.00044931,120]
[336751224,1725097494179,-500.0,0.00044931,120]
[336751225,1725097494238,-5280.48,0.00044931,120]
[336751226,1725097494296,-1203.15,0.00044931,120]
[336751227,1725097494353,-500.0,0.00044931,120]
[336751228,1725097494412,-2185.22,0.00044931,120]
[336751229,1725097494469,-500.0,0.00044931,120]
[336751230,1725097494533,-592.86,0.00044931,120]
[336751231,1725097494592,-500.0,0.00044931,120]
[336751232,1725097494651,-383.49737779,0.00044931,120]
[336751233,1725097494711,-500.0,0.00044931,120]
[336751234,1725097494769,-775.52,0.00044931,120]
[336751235,1725097494826,-500.0,0.00044931,120]
[336751236,1725097494884,-500.0,0.00044931,120]
[336751237,1725097494942,-521.46,0.00044931,120]
[336751238,1725097495001,-500.0,0.00044931,120]
[336751239,1725097495061,-189.97275098,0.00044931,120]
[336751240,1725097495121,-598.46,0.00044931,120]
[336751241,1725097495184,-2456.03,0.00044931,120]
[336751242,1725097495247,-823.29,0.00044931,120]
[336751243,1725097495311,-500.0,0.00044931,120]
[336751244,1725097495372,-905.31,0.00044931,120]
[336751245,1725097495434,-500.0,0.00044931,120]
[336751246,1725097495497,-500.0,0.00044931,120]
[336751247,1725097495558,-425.93241833,0.00044931,120]
[336751248,1725097495618,-215.00314137,0.00044931,120]
[336751249,1725097495851,-549.38,0.00044931,120]
[336751250,1725097495914,-785.7,0.00044931,120]
[336751251,1725097495973,-1732.86,0.00044931,120]
[336751252,1725097496033,-424.20194433,0.00044931,120]
[336751253,1725097496098,-500.0,0.00044931,120]
[336751254,1725097496156,-500.0,0.00044931,120]
[336751255,1725097496213,-500.0,0.00044931,120]
[336751256,1725097496279,-500.0,0.00044931,120]
[336751257,1725097496339,-500.0,0.00044931,120]
[336751258,1725097496398,-500.0,0.00044931,120]
[336751259,1725097496454,-500.0,0.00044931,120]
[336751260,1725097496512,-1256.7,0.00044931,120]
[336751261,1725097496572,-500.0,0.00044931,120]
[336751262,1725097496629,-500.0,0.00044931,120]
[336751263,1725097496687,-500.0,0.00044931,120]
[336751264,1725097496746,-1746.63,0.00044931,120]
[336751265,1725097496804,-799.71,0.00044931,120]
[336751266,1725097496861,-500.0,0.00044931,120]
[336751267,1725097496918,-634.95,0.00044931,120]
[336751268,1725097496972,-840.46,0.00044931,120]
[336751269,1725097497027,-500.0,0.00044931,120]
[336751270,1725097497079,-161.71194343,0.00044931,120]
[336751271,1725097497131,-500.0,0.00044931,120]
[336751272,1725097497184,-500.0,0.00044931,120]
[336751273,1725097497240,-414.07455604,0.00044931,120]
[336751274,1725097497298,-500.0,0.00044931,120]
[336751275,1725097497356,-500.0,0.00044931,120]
[336751276,1725097497417,-500.0,0.00044931,120]
[336751277,1725097497476,-615.07,0.00044931,120]
[336751278,1725097497535,-300.0,0.00045,120]
[336751279,1725097497600,-500.0,0.00045479,120]
[336751280,1725097497661,-500.0,0.00045479,120]
[336751281,1725097497718,-5280.48,0.00045479,120]
[336751282,1725097497782,-1203.15,0.00045479,120]
[336751283,1725097497839,-538.80941402,0.00045479,120]
[336751284,1725097497896,-2185.22,0.00045479,120]
[336751285,1725097497951,-543.77767043,0.00045479,120]
[336751286,1725097498004,-592.86,0.00045479,120]
[336751287,1725097498054,-500.0,0.00045479,120]
[336751288,1725097498104,-500.0,0.00045479,120]
[336751289,1725097498156,-775.52,0.00045479,120]
[336751290,1725097498206,-500.0,0.00045479,120]
[336751291,1725097498256,-500.0,0.00045479,120]
[336751292,1725097498309,-521.46,0.00045479,120]
[336751293,1725097498365,-500.0,0.00045479,120]
[336751294,1725097498422,-598.46,0.00045479,120]
[336751295,1725097498478,-2456.03,0.00045479,120]
[336751296,1725097498536,-823.29,0.00045479,120]
[336751297,1725097498593,-500.0,0.00045479,120]
[336751298,1725097498651,-905.31,0.00045479,120]
[336751299,1725097498711,-500.0,0.00045479,120]
[336751300,1725097498771,-500.0,0.00045479,120]
[336751301,1725097498829,-549.38,0.00045479,120]
[336751302,1725097498886,-785.7,0.00045479,120]
[336751303,1725097498945,-1732.86,0.00045479,120]
[336751304,1725097499004,-500.0,0.00045479,120]
[336751305,1725097499063,-500.0,0.00045479,120]
[336751306,1725097499128,-508.45240192,0.00045479,120]
[336751307,1725097499189,-500.0,0.00045479,120]
[336751308,1725097499248,-509.22984525,0.00045479,120]
[336751309,1725097499310,-500.0,0.00045479,120]
[336751310,1725097499370,-500.0,0.00045479,120]
[336751311,1725097499429,-1256.7,0.00045479,120]
[336751312,1725097499487,-500.0,0.00045479,120]
[336751313,1725097499545,-420.84585517,0.00045479,120]
[336751314,1725097499602,-500.0,0.00045479,120]
[336751315,1725097499660,-1746.63,0.00045479,120]
[336751316,1725097499719,-799.71,0.00045479,120]
[336751317,1725097499777,-500.0,0.00045479,120]
[336751318,1725097499839,-634.95,0.00045479,120]
[336751319,1725097499902,-840.46,0.00045479,120]
[336751320,1725097499963,-500.0,0.00045479,120]
[336751321,1725097500029,-500.0,0.00045479,120]
[336751322,1725097500091,-500.0,0.00045479,120]
[336751323,1725097500151,-500.0,0.00045479,120]
[336751324,1725097500220,-592.59625953,0.00045479,120]
[336751325,1725097500289,-500.0,0.00045479,120]
[336751326,1725097500354,-615.07,0.00045479,120]
[336751327,1725097500420,-3197.0,0.000455,120]
[336751328,1725097500486,-5107.90932438,0.000458,120]
[336751329,1725097500548,-150.0206905,0.00045999,120]
[336751330,1725097500609,-469700.16819282,0.00046,120]
[336751331,1725097500671,-800.0,0.00046,120]
[336751332,1725097500732,-1000.0,0.00046,120]
[336751333,1725097500792,-45000.0,0.00046,120]
[336751334,1725097500851,-900000.0,0.00046,120]
[336751335,1725097500913,-170.2,0.00046,96]
[336751336,1725097500972,-245.27981326,0.00046,90]
[336751337,1725097501031,-791.94407292,0.00046,120]
[336751338,1725097501091,-1594.86619275,0.00046,120]
[336751339,1725097501148,-590.64,0.00046027,120]
[336751340,1725097501206,-2142.76,0.00046027,120]
[336751341,1725097501263,-2187.81,0.00046027,120]
[336751342,1725097501319,-500.0,0.00046027,120]
[336751343,1725097501375,-500.0,0.00046027,120]
[336751344,1725097501430,-500.0,0.00046027,120]
[336751345,1725097501487,-332.90857594,0.00046027,120]
[336751346,1725097501545,-500.0,0.00046027,120]
[336751347,1725097501606,-500.0,0.00046027,120]
[336751348,1725097501665,-500.0,0.00046027,120]
[336751349,1725097501726,-427.72667775,0.00046027,120]
[336751350,1725097501786,-500.0,0.00046027,120]
[336751351,1725097501845,-500.0,0.00046027,120]
[336751352,1725097501905,-500.0,0.00046027,120]
[336751353,1725097502150,-183.29005295,0.00046027,120]
[336751354,1725097502213,-500.0,0.00046027,120]
[336751355,1725097502276,-532.51,0.00046027,120]
[336751356,1725097502337,-500.0,0.00046027,120]
[336751357,1725097502401,-500.0,0.00046027,120]
[336751358,1725097502462,-959.15,0.00046027,120]
[336751359,1725097502523,-560.67,0.00046027,120]
[336751360,1725097502588,-951.43,0.00046027,120]
[336751361,1725097502647,-500.0,0.00046027,120]
[336751362,1725097502705,-651.36,0.00046027,120]
[336751363,1725097502761,-500.0,0.00046027,120]
[336751364,1725097502817,-705.93,0.00046027,120]
[336751365,1725097502876,-546.79,0.00046027,120]
[336751366,1725097502936,-500.0,0.00046027,120]
[336751367,1725097502997,-534.73,0.00046027,120]
[336751368,1725097503062,-1291.66,0.00046027,120]
[336751369,1725097503131,-1172.65,0.00046027,120]
[336751370,1725097503204,-771.32,0.00046027,120]
[336751371,1725097503277,-500.0,0.00046027,120]
[336751372,1725097503352,-662.9,0.00046027,120]
[336751373,1725097503424,-785.17,0.00046027,120]
[336751374,1725097503500,-963.03,0.00046027,120]
[336751375,1725097503571,-545.12,0.00046027,120]
[336751376,1725097503640,-500.0,0.00046027,120]
[336751377,1725097503708,-537.82,0.00046027,120]
[336751378,1725097503777,-885.33,0.00046027,120]
[336751379,1725097503846,-500.0,0.00046027,120]
[336751380,1725097503914,-755.01,0.00046027,120]
[336751381,1725097503984,-500.0,0.00046027,120]
[336751382,1725097504050,-599.15,0.00046027,120]
[336751383,1725097504115,-234.94273402,0.00046027,120]
[336751384,1725097504182,-665.66,0.00046027,120]
[336751385,1725097504250,-500.0,0.00046027,120]
[336751386,1725097504316,-500.0,0.00046027,120]
[336751387,1725097504382,-5280.48,0.00046027,120]
[336751388,1725097504445,-1203.15,0.00046027,120]
[336751389,1725097504511,-2185.22,0.00046027,120]
[336751390,1725097504581,-592.86,0.00046027,120]
[336751391,1725097504647,-549.80183777,0.00046027,120]
[336751392,1725097504712,-500.0,0.00046027,120]
[336751393,1725097504776,-775.52,0.00046027,120]
[336751394,1725097504841,-236.05876583,0.00046027,120]
[336751395,1725097504905,-500.0,0.00046027,120]
[336751396,1725097504965,-521.46,0.00046027,120]
[336751397,1725097505029,-432.70699933,0.00046027,120]
[336751398,1725097505091,-598.46,0.00046027,120]
[336751399,1725097505153,-2456.03,0.00046027,120]
[336751400,1725097505217,-823.29,0.00046027,120]
[336751401,1725097505283,-500.0,0.00046027,120]
[336751402,1725097505351,-905.31,0.00046027,120]
[336751403,1725097505417,-500.0,0.00046027,120]
[336751404,1725097505480,-500.0,0.00046027,120]
[336751405,1725097505546,-549.38,0.00046027,120]
[336751406,1725097505614,-785.7,0.00046027,120]
[336751407,1725097505679,-1732.86,0.00046027,120]
[336751408,1725097505744,-500.0,0.00046027,120]
[336751409,1725097505808,-582.70967955,0.00046027,120]
[336751410,1725097505873,-500.0,0.00046027,120]
[336751411,1725097505939,-500.0,0.00046027,120]
[336751412,1725097506001,-500.0,0.00046027,120]
[336751413,1725097506063,-1256.7,0.00046027,120]
[336751414,1725097506125,-500.0,0.00046027,120]
[336751415,1725097506189,-443.75961771,0.00046027,120]
[336751416,1725097506252,-799.71,0.00046027,120]
[336751417,1725097506316,-1746.63,0.00046027,120]
[336751418,1725097506380,-500.0,0.00046027,120]
[336751419,1725097506445,-634.95,0.00046027,120]
[336751420,1725097506508,-840.46,0.00046027,120]
[336751421,1725097506570,-500.0,0.00046027,120]
[336751422,1725097506633,-500.0,0.00046027,120]
[336751423,1725097506696,-500.0,0.00046027,120]
[336751424,1725097506757,-500.0,0.00046027,120]
[336751425,1725097506820,-500.0,0.00046027,120]
[336751426,1725097506880,-615.07,0.00046027,120]
[336751427,1725097506942,-150.0,0.00046083,120]
[336751428,1725097507002,-150.0,0.00046283,120]
[336751429,1725097507061,-7331.32138273,0.000464,60]
[336751430,1725097507121,-5505.59,0.00046426,114]
[336751431,1725097507185,-2174.41,0.00046524,120]
[336751432,1725097507247,-2142.76,0.00046575,120]
[336751433,1725097507307,-2187.81,0.00046575,120]
[336751434,1725097507371,-500.0,0.00046575,120]
[336751435,1725097507432,-500.0,0.00046575,120]
[336751436,1725097507494,-500.0,0.00046575,120]
[336751437,1725097507556,-500.0,0.00046575,120]
[336751438,1725097507619,-224.70758273,0.00046575,120]
[336751439,1725097507680,-591.60317115,0.00046575,120]
[336751440,1725097507743,-500.0,0.00046575,120]
[336751441,1725097507804,-500.0,0.00046575,120]
[336751442,1725097507865,-500.0,0.00046575,120]
[336751443,1725097507926,-500.0,0.00046575,120]
[336751444,1725097507991,-532.51,0.00046575,120]
[336751445,1725097508052,-500.0,0.00046575,120]
[336751446,1725097508113,-500.0,0.00046575,120]
[336751447,1725097508173,-959.15,0.00046575,120]
[336751448,1725097508234,-560.67,0.00046575,120]
[336751449,1725097508294,-951.43,0.00046575,120]
[336751450,1725097508355,-500.0,0.00046575,120]
[336751451,1725097508416,-651.36,0.00046575,120]
[336751452,1725097508476,-500.0,0.00046575,120]
[336751453,1725097508542,-705.93,0.00046575,120]
[336751454,1725097508603,-546.79,0.00046575,120]
[336751455,1725097508666,-500.0,0.00046575,120]
[336751456,1725097508726,-534.73,0.00046575,120]
[336751457,1725097508962,-1291.66,0.00046575,120]
[336751458,1725097509025,-1172.65,0.00046575,120]
[336751459,1725097509087,-771.32,0.00046575,120]
[336751460,1725097509151,-500.0,0.00046575,120]
[336751461,1725097509213,-662.9,0.00046575,120]
[336751462,1725097509277,-785.17,0.00046575,120]
[336751463,1725097509340,-963.03,0.00046575,120]
[336751464,1725097509403,-545.12,0.00046575,120]
[336751465,1725097509467,-500.0,0.00046575,120]
[336751466,1725097509529,-537.82,0.00046575,120]
[336751467,1725097509594,-885.33,0.00046575,120]
[336751468,1725097509658,-500.0,0.00046575,120]
[336751469,1725097509718,-755.01,0.00046575,120]
[336751470,1725097509778,-500.0,0.00046575,120]
[336751471,1725097509839,-599.15,0.00046575,120]
[336751472,1725097509903,-665.66,0.00046575,120]
[336751473,1725097509966,-500.0,0.00046575,120]
[336751474,1725097510026,-500.0,0.00046575,120]
[336751475,1725097510086,-5280.48,0.00046575,120]
[336751476,1725097510147,-1203.15,0.00046575,120]
[336751477,1725097510211,-2185.22,0.00046575,120]
[336751478,1725097510274,-592.86,0.00046575,120]
[336751479,1725097510338,-500.0,0.00046575,120]
[336751480,1725097510401,-775.52,0.00046575,120]
[336751481,1725097510463,-500.0,0.00046575,120]
[336751482,1725097510524,-521.46,0.00046575,120]
[336751483,1725097510588,-598.46,0.00046575,120]
[336751484,1725097510650,-2456.03,0.00046575,120]
[336751485,1725097510713,-823.29,0.00046575,120]
[336751486,1725097510775,-500.0,0.00046575,120]
[336751487,1725097510836,-905.31,0.00046575,120]
[336751488,1725097510901,-500.0,0.00046575,120]
[336751489,1725097510965,-500.0,0.00046575,120]
[336751490,1725097511028,-549.38,0.00046575,120]
[336751491,1725097511091,-785.7,0.00046575,120]
[336751492,1725097511155,-1732.86,0.00046575,120]
[336751493,1725097511219,-500.0,0.00046575,120]
[336751494,1725097511284,-500.0,0.00046575,120]
[336751495,1725097511348,-500.0,0.00046575,120]
[336751496,1725097511411,-500.0,0.00046575,120]
[336751497,1725097511476,-1256.7,0.00046575,120]
[336751498,1725097511544,-500.0,0.00046575,120]
[336751499,1725097511608,-799.71,0.00046575,120]
[336751500,1725097511671,-1746.63,0.00046575,120]
[336751501,1725097511733,-500.0,0.00046575,120]
[336751502,1725097511795,-634.95,0.00046575,120]
[336751503,1725097511856,-840.46,0.00046575,120]
[336751504,1725097511918,-237.32921273,0.00046575,120]
[336751505,1725097511982,-500.0,0.00046575,120]
[336751506,1725097512045,-500.0,0.00046575,120]
[336751507,1725097512108,-500.0,0.00046575,120]
[336751508,1725097512171,-500.0,0.00046575,120]
[336751509,1725097512236,-615.07,0.00046575,120]
[336751510,1725097512299,-2001.23057717,0.000468,90]
[336751511,1725097512362,-10989.77161159,0.000468,120]
[336751512,1725097512426,-9005.16901001,0.000468,120]
[336751513,1725097512490,-499999.0,0.000468,120]
[336751514,1725097512552,-590.64,0.00046849,120]
[336751515,1725097512618,-151.0,0.00046849,120]
[336751516,1725097512682,-150.0,0.00046999,120]
[336751517,1725097512753,-50000.0,0.00047,47]
[336751518,1725097512813,-2000.29609688,0.00047,120]
[336751519,1725097512874,-500000.0,0.00047,120]
[336751520,1725097512936,-10227.74352273,0.00047,60]
[336751521,1725097513000,-30000.0,0.00047,120]
[336751522,1725097513062,-500000.0,0.00047,120]
[336751523,1725097513125,-2142.76,0.00047123,120]
[336751524,1725097513191,-2187.81,0.00047123,120]
[336751525,1725097513256,-500.0,0.00047123,120]
[336751526,1725097513319,-500.0,0.00047123,120]
[336751527,1725097513383,-500.0,0.00047123,120]
[336751528,1725097513448,-500.0,0.00047123,120]
[336751529,1725097513512,-500.0,0.00047123,120]
[336751530,1725097513578,-500.0,0.00047123,120]
[336751531,1725097513641,-500.0,0.00047123,120]
[336751532,1725097513704,-500.0,0.00047123,120]
[336751533,1725097513767,-532.51,0.00047123,120]
[336751534,1725097513833,-500.0,0.00047123,120]
[336751535,1725097513900,-409.31011582,0.00047123,120]
[336751536,1725097513966,-959.15,0.00047123,120]
[336751537,1725097514030,-560.67,0.00047123,120]
[336751538,1725097514091,-951.43,0.00047123,120]
[336751539,1725097514152,-500.0,0.00047123,120]
[336751540,1725097514215,-651.36,0.00047123,120]
[336751541,1725097514271,-500.0,0.00047123,120]
[336751542,1725097514328,-705.93,0.00047123,120]
[336751543,1725097514383,-546.79,0.00047123,120]
[336751544,1725097514442,-500.0,0.00047123,120]
[336751545,1725097514498,-534.73,0.00047123,120]
[336751546,1725097514557,-1291.66,0.00047123,120]
[336751547,1725097514618,-1172.65,0.00047123,120]
[336751548,1725097514680,-771.32,0.00047123,120]
[336751549,1725097514742,-500.0,0.00047123,120]
[336751550,1725097514804,-662.9,0.00047123,120]
[336751551,1725097514868,-785.17,0.00047123,120]
[336751552,1725097514934,-963.03,0.00047123,120]
[336751553,1725097514999,-545.12,0.00047123,120]
[336751554,1725097515063,-500.0,0.00047123,120]
[336751555,1725097515125,-537.82,0.00047123,120]
[336751556,1725097515184,-885.33,0.00047123,120]
[336751557,1725097515243,-380.53334934,0.00047123,120]
[336751558,1725097515302,-755.01,0.00047123,120]
[336751559,1725097515363,-500.0,0.00047123,120]
[336751560,1725097515582,-599.15,0.00047123,120]
[336751561,1725097515644,-665.66,0.00047123,120]
[336751562,1725097515707,-374.84381079,0.00047123,120]
[336751563,1725097515768,-500.0,0.00047123,120]
[336751564,1725097515829,-5280.48,0.00047123,120]
[336751565,1725097515890,-1203.15,0.00047123,120]
[336751566,1725097515951,-2185.22,0.00047123,120]
[336751567,1725097516010,-592.86,0.00047123,120]
[336751568,1725097516073,-500.0,0.00047123,120]
[336751569,1725097516137,-775.52,0.00047123,120]
[336751570,1725097516198,-500.0,0.00047123,120]
[336751571,1725097516263,-521.46,0.00047123,120]
[336751572,1725097516325,-598.46,0.00047123,120]
[336751573,1725097516387,-2456.03,0.00047123,120]
[336751574,1725097516449,-823.29,0.00047123,120]
[336751575,1725097516509,-500.0,0.00047123,120]
[336751576,1725097516570,-905.31,0.00047123,120]
[336751577,1725097516632,-500.0,0.00047123,120]
[336751578,1725097516691,-500.0,0.00047123,120]
[336751579,1725097516757,-549.38,0.00047123,120]
[336751580,1725097516816,-785.7,0.00047123,120]
[336751581,1725097516875,-1732.86,0.00047123,120]
[336751582,1725097516937,-500.0,0.00047123,120]
[336751583,1725097517001,-279.67940212,0.00047123,120]
[336751584,1725097517062,-500.0,0.00047123,120]
[336751585,1725097517123,-500.0,0.00047123,120]
[336751586,1725097517186,-1256.7,0.00047123,120]
[336751587,1725097517247,-500.0,0.00047123,120]
[336751588,1725097517306,-799.71,0.00047123,120]
[336751589,1725097517369,-1746.63,0.00047123,120]
[336751590,1725097517429,-500.0,0.00047123,120]
[336751591,1725097517490,-634.95,0.00047123,120]
[336751592,1725097517551,-840.46,0.00047123,120]
[336751593,1725097517614,-186.22266409,0.00047123,120]
[336751594,1725097517677,-500.0,0.00047123,120]
[336751595,1725097517739,-500.0,0.00047123,120]
[336751596,1725097517799,-500.0,0.00047123,120]
[336751597,1725097517860,-615.07,0.00047123,120]
[336751598,1725097517922,-500.0,0.00047589,40]
[336751599,1725097517982,-200.23956015,0.00047617,120]
[336751600,1725097518041,-590.64,0.00047671,120]
[336751601,1725097518098,-2142.76,0.00047671,120]
[336751602,1725097518157,-2187.81,0.00047671,120]
[336751603,1725097518216,-238.3047682,0.00047671,120]
[336751604,1725097518274,-500.0,0.00047671,120]
[336751605,1725097518332,-500.0,0.00047671,120]
[336751606,1725097518393,-500.0,0.00047671,120]
[336751607,1725097518454,-488.17235403,0.00047671,120]
[336751608,1725097518515,-500.0,0.00047671,120]
[336751609,1725097518577,-647.8770929,0.00047671,120]
[336751610,1725097518639,-500.0,0.00047671,120]
[336751611,1725097518702,-532.51,0.00047671,120]
[336751612,1725097518765,-500.0,0.00047671,120]
[336751613,1725097518828,-959.15,0.00047671,120]
[336751614,1725097518893,-560.67,0.00047671,120]
[336751615,1725097518954,-951.43,0.00047671,120]
[336751616,1725097519014,-500.0,0.00047671,120]
[336751617,1725097519076,-651.36,0.00047671,120]
[336751618,1725097519138,-500.0,0.00047671,120]
[336751619,1725097519203,-705.93,0.00047671,120]
[336751620,1725097519269,-546.79,0.00047671,120]
[336751621,1725097519333,-160.12733302,0.00047671,120]
[336751622,1725097519398,-534.73,0.00047671,120]
[336751623,1725097519460,-1291.66,0.00047671,120]
[336751624,1725097519523,-1172.65,0.00047671,120]
[336751625,1725097519591,-771.32,0.00047671,120]
[336751626,1725097519655,-500.0,0.00047671,120]
[336751627,1725097519719,-662.9,0.00047671,120]
[336751628,1725097519783,-785.17,0.00047671,120]
[336751629,1725097519847,-963.03,0.00047671,120]
[336751630,1725097519913,-545.12,0.00047671,120]
[336751631,1725097519978,-500.0,0.00047671,120]
[336751632,1725097520042,-537.82,0.00047671,120]
[336751633,1725097520104,-885.33,0.00047671,120]
[336751634,1725097520167,-755.01,0.00047671,120]
[336751635,1725097520230,-500.0,0.00047671,120]
[336751636,1725097520294,-599.15,0.00047671,120]
[336751637,1725097520357,-665.66,0.00047671,120]
[336751638,1725097520419,-500.0,0.00047671,120]
[336751639,1725097520482,-5280.48,0.00047671,120]
[336751640,1725097520548,-1203.15,0.00047671,120]
[336751641,1725097520614,-2185.22,0.00047671,120]
[336751642,1725097520677,-592.86,0.00047671,120]
[336751643,1725097520739,-500.0,0.00047671,120]
[336751644,1725097520810,-775.52,0.00047671,120]
[336751645,1725097520873,-500.0,0.00047671,120]
[336751646,1725097520935,-521.46,0.00047671,120]
[336751647,1725097520995,-598.46,0.00047671,120]
[336751648,1725097521059,-2456.03,0.00047671,120]
[336751649,1725097521119,-823.29,0.00047671,120]
[336751650,1725097521180,-500.0,0.00047671,120]
[336751651,1725097521240,-905.31,0.00047671,120]
[336751652,1725097521305,-582.86820186,0.00047671,120]
[336751653,1725097521365,-500.0,0.00047671,120]
[336751654,1725097521426,-549.38,0.00047671,120]
[336751655,1725097521487,-785.7,0.00047671,120]
[336751656,1725097521549,-1732.86,0.00047671,120]
[336751657,1725097521612,-500.0,0.00047671,120]
[336751658,1725097521675,-500.0,0.00047671,120]
[336751659,1725097521735,-500.0,0.00047671,120]
[336751660,1725097521796,-1256.7,0.00047671,120]
[336751661,1725097521858,-500.0,0.00047671,120]
[336751662,1725097521920,-799.71,0.00047671,120]
[336751663,1725097521984,-1746.63,0.00047671,120]
[336751664,1725097522207,-500.0,0.00047671,120]
[336751665,1725097522271,-634.95,0.00047671,120]
[336751666,1725097522334,-840.46,0.00047671,120]
[336751667,1725097522400,-500.0,0.00047671,120]
[336751668,1725097522465,-500.0,0.00047671,120]
[336751669,1725097522537,-500.0,0.00047671,120]
[336751670,1725097522606,-615.07,0.00047671,120]
[336751671,1725097522677,-500.0,0.00047739,60]
[336751672,1725097522747,-150.0,0.00047759,120]
[336751673,1725097522821,-821.48323943,0.00047778,120]
[336751674,1725097522885,-1669.82738848,0.000478,120]
[336751675,1725097522953,-2256.61694428,0.000478,90]
[336751676,1725097523018,-500.0,0.00047859,60]
[336751677,1725097523080,-69705.73219941,0.000479,120]
[336751678,1725097523143,-151.0,0.00047973,120]
[336751679,1725097523204,-316.4640807,0.00047998,120]
[336751680,1725097523270,-1000.0,0.00047999,120]
[336751681,1725097523334,-50000.0,0.00048,48]
[336751682,1725097523397,-500000.0,0.00048,120]
[336751683,1725097523460,-160.0,0.00048,90]
[336751684,1725097523523,-2000.0,0.00048,120]
[336751685,1725097523591,-10143.0,0.00048,60]
[336751686,1725097523655,-837.69458443,0.00048,120]
[336751687,1725097523719,-45272.99,0.00048,120]
[336751688,1725097523781,-791.94407292,0.00048,120]
[336751689,1725097523843,-150.4708636,0.00048,60]
[336751690,1725097523906,-1594.86619274,0.00048,120]
[336751691,1725097523971,-278160.88809266,0.00048,120]
[336751694,1725097579558,-358.4,0.00025854,120]
[336751695,1725097579625,-358.4,0.00028727,120]
[336751696,1725097579705,-358.4,0.000316,120]
[336751697,1725097579775,-358.4,0.00034473,120]
[336751698,1725097579846,-500.0,0.00038356,120]
[336751699,1725097579911,-1320.12,0.00038356,120]
[336751700,1725097579976,-1108.5,0.00038356,120]
[336751701,1725097580037,-2059.16,0.00038356,120]
[336751702,1725097580106,-500.0,0.00038356,120]
[336751703,1725097580167,-500.0,0.00038356,120]
[336751704,1725097580227,-500.0,0.00038356,120]
[336751705,1725097580291,-500.0,0.00038356,120]
[336751706,1725097580354,-500.0,0.00038356,120]
[336751707,1725097580417,-500.0,0.00038356,120]
[336751708,1725097580479,-500.0,0.00038356,120]
[336751709,1725097580539,-500.0,0.00038356,120]
[336751710,1725097580603,-500.0,0.00038356,120]
[336751711,1725097580660,-500.0,0.00038356,120]
[336751712,1725097580718,-500.0,0.00038356,120]
[336751713,1725097580777,-500.0,0.00038356,120]
[336751714,1725097580835,-500.0,0.00038356,120]